[Event "*** Titled Tuesday Blitz"]
[Site "Chess.com"]
[Date "2021.03.09"]
[Round "1"]
[White "VitaliyBernadskiy"]
[Black "CM_rui"]
[Result "1-0"]
[WhiteElo "2737"]
[BlackElo "2401"]
[TimeControl "180+1"]
[EndTime "10:04:51 PST"]
[Termination "VitaliyBernadskiy won by resignation"]

1. d4 {[%clk 0:02:59.4]} 1... Nf6 {[%clk 0:02:58.5]} 2. c4 {[%clk 0:02:59.1]}
2... e6 {[%clk 0:02:59.3]} 3. Nc3 {[%clk 0:02:58.8]} 3... Bb4 {[%clk 0:03:00]}
4. Bd2 {[%clk 0:02:59.2]} 4... O-O {[%clk 0:03:00.6]} 5. Nf3 {[%clk 0:02:56.3]}
5... d6 {[%clk 0:03:00]} 6. g3 {[%clk 0:02:55.8]} 6... Nbd7 {[%clk 0:02:57.8]}
7. Bg2 {[%clk 0:02:54.6]} 7... e5 {[%clk 0:02:57.9]} 8. O-O {[%clk 0:02:54.8]}
8... Qe7 {[%clk 0:02:57.5]} 9. a3 {[%clk 0:02:51.4]} 9... Bxc3 {[%clk 0:02:57]}
10. Bxc3 {[%clk 0:02:52.3]} 10... c6 {[%clk 0:02:53.9]} 11. Qc2 {[%clk
0:02:50.9]} 11... a5 {[%clk 0:02:40]} 12. b3 {[%clk 0:02:36.1]} 12... e4 {[%clk
0:02:35.9]} 13. Ng5 {[%clk 0:02:24.4]} 13... d5 {[%clk 0:02:33.3]} 14. f3 {[%clk
0:02:20.9]} 14... exf3 {[%clk 0:02:10.5]} 15. Nxf3 {[%clk 0:02:16.9]} 15... Re8
{[%clk 0:02:06.7]} 16. Ne5 {[%clk 0:02:07.3]} 16... Nxe5 {[%clk 0:01:54.6]} 17.
dxe5 {[%clk 0:02:08.2]} 17... Ng4 {[%clk 0:01:53.1]} 18. Bd4 {[%clk 0:01:58]}
18... c5 {[%clk 0:01:43.7]} 19. Bxd5 {[%clk 0:01:56.4]} 19... cxd4 {[%clk
0:01:24.5]} 20. Rxf7 {[%clk 0:01:53.7]} 20... Qxf7 {[%clk 0:01:22]} 21. Bxf7+
{[%clk 0:01:54.6]} 21... Kxf7 {[%clk 0:01:22.6]} 22. Qxh7 {[%clk 0:01:54.1]}
22... Rxe5 {[%clk 0:01:12.2]} 23. Rf1+ {[%clk 0:01:52.8]} 23... Nf6 {[%clk
0:01:11.8]} 24. Qh4 {[%clk 0:01:33.6]} 24... Rxe2 {[%clk 0:01:01.6]} 25. Qh5+
{[%clk 0:01:31.6]} 25... g6 {[%clk 0:01:00.9]} 26. Qxe2 {[%clk 0:01:31.9]} 26...
Bh3 {[%clk 0:01:01.8]} 27. Rf4 {[%clk 0:01:18.3]} 27... Re8 {[%clk 0:01:01.2]}
28. Rxf6+ {[%clk 0:01:18]} 28... Kxf6 {[%clk 0:01:01.8]} 1-0

[Event "*** Titled Tuesday Blitz"]
[Site "Chess.com"]
[Date "2021.03.09"]
[Round "1"]
[White "andrewtnb"]
[Black "SirStrateg"]
[Result "0-1"]
[WhiteElo "2312"]
[BlackElo "2611"]
[TimeControl "180+1"]
[EndTime "10:04:56 PST"]
[Termination "SirStrateg won by resignation"]

1. d4 {[%clk 0:02:59.7]} 1... Nf6 {[%clk 0:02:58]} 2. c4 {[%clk 0:03:00.1]} 2...
Nc6 {[%clk 0:02:58]} 3. Nf3 {[%clk 0:02:58.7]} 3... e6 {[%clk 0:02:57.4]} 4. a3
{[%clk 0:02:58.2]} 4... d6 {[%clk 0:02:48.1]} 5. Nc3 {[%clk 0:02:56.5]} 5... g6
{[%clk 0:02:45.7]} 6. e4 {[%clk 0:02:53.2]} 6... Bg7 {[%clk 0:02:44.9]} 7. Be2
{[%clk 0:02:53.5]} 7... O-O {[%clk 0:02:44.1]} 8. O-O {[%clk 0:02:54]} 8... Re8
{[%clk 0:02:44]} 9. Be3 {[%clk 0:02:37.9]} 9... e5 {[%clk 0:02:42.2]} 10. d5
{[%clk 0:02:38]} 10... Nd4 {[%clk 0:02:41.8]} 11. Nxd4 {[%clk 0:02:35.8]} 11...
exd4 {[%clk 0:02:42.1]} 12. Bxd4 {[%clk 0:02:36]} 12... Nxe4 {[%clk 0:02:42.7]}
13. Bxg7 {[%clk 0:02:31.1]} 13... Kxg7 {[%clk 0:02:42.6]} 14. Nxe4 {[%clk
0:02:27.7]} 14... Rxe4 {[%clk 0:02:42.4]} 15. Bd3 {[%clk 0:02:27.8]} 15... Rd4
{[%clk 0:02:41.9]} 16. Qc2 {[%clk 0:01:59.2]} 16... Qf6 {[%clk 0:02:35.4]} 17.
Rae1 {[%clk 0:01:54]} 17... Bd7 {[%clk 0:02:35.3]} 18. Re3 {[%clk 0:01:52.2]}
18... Re8 {[%clk 0:02:33]} 19. Rfe1 {[%clk 0:01:48.3]} 19... Rxe3 {[%clk
0:02:32.3]} 20. Rxe3 {[%clk 0:01:48.2]} 20... b6 {[%clk 0:02:24.4]} 21. h3
{[%clk 0:01:44.5]} 21... a5 {[%clk 0:02:23.6]} 22. a4 {[%clk 0:01:39.2]} 22...
h5 {[%clk 0:02:19.6]} 23. b3 {[%clk 0:01:39]} 23... h4 {[%clk 0:02:18.7]} 24.
Qe2 {[%clk 0:01:36.5]} 24... Rf4 {[%clk 0:02:12.8]} 25. Re4 {[%clk 0:00:54.8]}
25... Rxe4 {[%clk 0:02:02.5]} 26. Qxe4 {[%clk 0:00:42.5]} 26... Qa1+ {[%clk
0:02:02.6]} 27. Kh2 {[%clk 0:00:42.2]} 27... Qe5+ {[%clk 0:02:02.2]} 28. f4
{[%clk 0:00:39]} 28... Qf6 {[%clk 0:01:58.6]} 29. Qe2 {[%clk 0:00:25.3]} 29...
Qxf4+ {[%clk 0:01:56.6]} 0-1

[Event "*** Titled Tuesday Blitz"]
[Site "Chess.com"]
[Date "2021.03.09"]
[Round "1"]
[White "GOGIEFF"]
[Black "Olga_Girya"]
[Result "1-0"]
[WhiteElo "2884"]
[BlackElo "2455"]
[TimeControl "180+1"]
[EndTime "10:05:02 PST"]
[Termination "GOGIEFF won by resignation"]

1. d4 {[%clk 0:03:00]} 1... Nf6 {[%clk 0:02:59.5]} 2. c4 {[%clk 0:02:59.8]} 2...
e6 {[%clk 0:03:00]} 3. Nc3 {[%clk 0:02:59.8]} 3... d5 {[%clk 0:02:58.1]} 4. cxd5
{[%clk 0:02:59.4]} 4... exd5 {[%clk 0:02:58.4]} 5. Bg5 {[%clk 0:02:59]} 5... Bb4
{[%clk 0:02:58.8]} 6. e3 {[%clk 0:02:55.2]} 6... h6 {[%clk 0:02:58.2]} 7. Bh4
{[%clk 0:02:44.7]} 7... g5 {[%clk 0:02:58.1]} 8. Bg3 {[%clk 0:02:44.9]} 8... Ne4
{[%clk 0:02:58.8]} 9. Qb3 {[%clk 0:02:37.4]} 9... Nc6 {[%clk 0:02:41.2]} 10. Bb5
{[%clk 0:02:27.3]} 10... Bxc3+ {[%clk 0:02:13.3]} 11. bxc3 {[%clk 0:02:26.7]}
11... h5 {[%clk 0:02:13.5]} 12. Ne2 {[%clk 0:02:10.6]} 12... h4 {[%clk
0:02:03.6]} 13. Be5 {[%clk 0:02:10.6]} 13... f6 {[%clk 0:01:53.4]} 14. f3 {[%clk
0:02:10.4]} 14... fxe5 {[%clk 0:01:48]} 15. fxe4 {[%clk 0:02:10]} 15... Be6
{[%clk 0:00:38.4]} 16. O-O {[%clk 0:02:08.9]} 16... a6 {[%clk 0:00:32.9]} 17.
Bxc6+ {[%clk 0:01:59.8]} 17... bxc6 {[%clk 0:00:33.1]} 18. dxe5 {[%clk
0:02:00.1]} 18... Qe7 {[%clk 0:00:33.1]} 19. Nd4 {[%clk 0:01:58.5]} 19... c5
{[%clk 0:00:12]} 20. Nxe6 {[%clk 0:01:51.6]} 20... Qxe6 {[%clk 0:00:12.4]} 21.
Qxd5 {[%clk 0:01:49]} 21... Qxd5 {[%clk 0:00:12.7]} 22. exd5 {[%clk 0:01:49.9]}
22... O-O-O {[%clk 0:00:12.9]} 23. c4 {[%clk 0:01:50.3]} 1-0

[Event "*** Titled Tuesday Blitz"]
[Site "Chess.com"]
[Date "2021.03.09"]
[Round "1"]
[White "KhamzinOlzhas"]
[Black "Magila31"]
[Result "1-0"]
[WhiteElo "2541"]
[BlackElo "2220"]
[TimeControl "180+1"]
[EndTime "10:05:08 PST"]
[Termination "KhamzinOlzhas won by resignation"]

1. e4 {[%clk 0:02:56.3]} 1... e5 {[%clk 0:02:58.9]} 2. Nf3 {[%clk 0:02:55.7]}
2... Nc6 {[%clk 0:02:58.2]} 3. d4 {[%clk 0:02:55.8]} 3... exd4 {[%clk 0:02:57]}
4. Nxd4 {[%clk 0:02:56.7]} 4... Bb4+ {[%clk 0:02:56.8]} 5. c3 {[%clk 0:02:56.5]}
5... Be7 {[%clk 0:02:56.8]} 6. Nxc6 {[%clk 0:02:48.2]} 6... bxc6 {[%clk
0:02:55.6]} 7. Bc4 {[%clk 0:02:48.6]} 7... d6 {[%clk 0:02:53.3]} 8. Qb3 {[%clk
0:02:46.2]} 8... Nf6 {[%clk 0:02:29.9]} 9. Bxf7+ {[%clk 0:02:45.7]} 9... Kf8
{[%clk 0:02:29.6]} 10. Be6 {[%clk 0:02:40.2]} 10... Nxe4 {[%clk 0:02:22.1]} 11.
Bxc8 {[%clk 0:02:37.5]} 11... Qxc8 {[%clk 0:02:20.5]} 12. O-O {[%clk 0:02:38.4]}
12... d5 {[%clk 0:02:17]} 13. Nd2 {[%clk 0:02:27.9]} 13... Nc5 {[%clk
0:02:07.7]} 14. Qc2 {[%clk 0:02:26.2]} 14... Bf6 {[%clk 0:02:02.6]} 15. b4
{[%clk 0:02:20.3]} 15... Nb7 {[%clk 0:01:50.3]} 16. Rb1 {[%clk 0:02:05.8]} 16...
Nd6 {[%clk 0:01:48.3]} 17. c4 {[%clk 0:02:06.6]} 17... Qf5 {[%clk 0:01:46.4]}
18. Qxf5 {[%clk 0:02:04.5]} 18... Nxf5 {[%clk 0:01:46]} 19. cxd5 {[%clk
0:02:04.2]} 19... cxd5 {[%clk 0:01:46.4]} 20. Nf3 {[%clk 0:02:05.1]} 20... Kf7
{[%clk 0:01:42.4]} 21. b5 {[%clk 0:02:01.4]} 21... Rab8 {[%clk 0:01:37.3]} 22.
Bf4 {[%clk 0:02:01.1]} 22... Rb7 {[%clk 0:01:25.9]} 23. Rfc1 {[%clk 0:02:01.6]}
23... Rc8 {[%clk 0:01:16.9]} 24. a4 {[%clk 0:01:57.7]} 24... h6 {[%clk
0:01:10.9]} 25. Rc6 {[%clk 0:01:54.4]} 25... Ne7 {[%clk 0:01:03.5]} 26. Rc5
{[%clk 0:01:46.8]} 26... c6 {[%clk 0:01:01.6]} 27. Rbc1 {[%clk 0:01:46.9]} 27...
Bb2 {[%clk 0:00:33.7]} 28. R1c2 {[%clk 0:01:44.8]} 28... Ba3 {[%clk 0:00:33.3]}
29. R5c3 {[%clk 0:01:43.2]} 29... c5 {[%clk 0:00:32.1]} 30. Rxa3 {[%clk
0:01:42.9]} 1-0

[Event "*** Titled Tuesday Blitz"]
[Site "Chess.com"]
[Date "2021.03.09"]
[Round "1"]
[White "PavelShkapenko"]
[Black "MergenKakabaev"]
[Result "1-0"]
[WhiteElo "2702"]
[BlackElo "2376"]
[TimeControl "180+1"]
[EndTime "10:05:18 PST"]
[Termination "PavelShkapenko won by resignation"]

1. e4 {[%clk 0:02:59]} 1... e5 {[%clk 0:02:59]} 2. Nf3 {[%clk 0:02:58.6]} 2...
Nc6 {[%clk 0:02:56.5]} 3. Bc4 {[%clk 0:02:57.4]} 3... Nf6 {[%clk 0:02:55.6]} 4.
Ng5 {[%clk 0:02:56.7]} 4... d5 {[%clk 0:02:54.7]} 5. exd5 {[%clk 0:02:57.6]}
5... Na5 {[%clk 0:02:53.9]} 6. Bb5+ {[%clk 0:02:57.7]} 6... c6 {[%clk
0:02:53.8]} 7. dxc6 {[%clk 0:02:58.4]} 7... bxc6 {[%clk 0:02:54.2]} 8. Bd3
{[%clk 0:02:59.3]} 8... h6 {[%clk 0:02:48.4]} 9. Ne4 {[%clk 0:02:58.9]} 9... Nd5
{[%clk 0:02:47.2]} 10. O-O {[%clk 0:02:55.6]} 10... f5 {[%clk 0:02:45.8]} 11.
Qh5+ {[%clk 0:02:51.6]} 11... Ke7 {[%clk 0:02:44.7]} 12. Ng3 {[%clk 0:02:40.1]}
12... e4 {[%clk 0:02:43.3]} 13. Re1 {[%clk 0:02:23.3]} 13... Kd6 {[%clk
0:02:41.9]} 14. Qg6+ {[%clk 0:01:59.3]} 14... Qf6 {[%clk 0:02:34.7]} 15. Qxf6+
{[%clk 0:01:58.7]} 15... Nxf6 {[%clk 0:02:34.7]} 16. Bf1 {[%clk 0:01:57.4]}
16... Kc7 {[%clk 0:02:15.3]} 17. d3 {[%clk 0:01:56.9]} 17... exd3 {[%clk
0:02:12.7]} 18. Bxd3 {[%clk 0:01:56.1]} 18... Bc5 {[%clk 0:02:05.9]} 19. Bd2
{[%clk 0:01:51.2]} 19... Nb7 {[%clk 0:02:04.7]} 20. Nxf5 {[%clk 0:01:50]} 20...
Rf8 {[%clk 0:02:00.2]} 21. Ne3 {[%clk 0:01:49.2]} 21... Bd7 {[%clk 0:01:54.8]}
22. Nc3 {[%clk 0:01:47.9]} 22... Nd6 {[%clk 0:01:54.1]} 23. Rad1 {[%clk
0:01:34.9]} 23... a5 {[%clk 0:01:51.7]} 24. h3 {[%clk 0:01:24.5]} 24... a4
{[%clk 0:01:48.9]} 25. Bc1 {[%clk 0:01:24.1]} 25... a3 {[%clk 0:01:29.8]} 26. b3
{[%clk 0:01:21.8]} 26... Bb4 {[%clk 0:01:03.4]} 27. Bd2 {[%clk 0:01:17.7]} 27...
Bc5 {[%clk 0:01:02.8]} 28. Na4 {[%clk 0:01:16.2]} 28... Ba7 {[%clk 0:01:02]} 29.
Ba5+ {[%clk 0:01:11.1]} 29... Kb7 {[%clk 0:01:01.2]} 30. Bb4 {[%clk 0:01:11]}
1-0

[Event "*** Titled Tuesday Blitz"]
[Site "Chess.com"]
[Date "2021.03.09"]
[Round "1"]
[White "PowerThinking2650"]
[Black "Alexsur1981"]
[Result "0-1"]
[WhiteElo "2439"]
[BlackElo "2830"]
[TimeControl "180+1"]
[EndTime "10:05:19 PST"]
[Termination "Alexsur1981 won by resignation"]

1. e4 {[%clk 0:02:58.7]} 1... c5 {[%clk 0:02:58.7]} 2. Nf3 {[%clk 0:02:58.4]}
2... e6 {[%clk 0:02:58.9]} 3. d4 {[%clk 0:02:57.1]} 3... cxd4 {[%clk 0:02:59.8]}
4. Nxd4 {[%clk 0:02:57.3]} 4... Nf6 {[%clk 0:03:00.3]} 5. Nc3 {[%clk 0:02:57]}
5... Nc6 {[%clk 0:03:00.7]} 6. Ndb5 {[%clk 0:02:53.5]} 6... Bc5 {[%clk
0:03:00.4]} 7. Bf4 {[%clk 0:02:51.4]} 7... O-O {[%clk 0:02:59.8]} 8. Bc7 {[%clk
0:02:50.9]} 8... Qe7 {[%clk 0:02:59.8]} 9. Bd6 {[%clk 0:02:50.8]} 9... Bxd6
{[%clk 0:03:00.2]} 10. Qxd6 {[%clk 0:02:51]} 10... Qd8 {[%clk 0:03:00.7]} 11.
O-O-O {[%clk 0:02:35.9]} 11... a6 {[%clk 0:03:00.6]} 12. Nd4 {[%clk 0:02:35.4]}
12... Qb6 {[%clk 0:02:59.7]} 13. Nxc6 {[%clk 0:02:06.4]} 13... bxc6 {[%clk
0:02:59]} 14. f3 {[%clk 0:02:04.8]} 14... Rb8 {[%clk 0:02:53.2]} 15. Na4 {[%clk
0:02:04.2]} 15... Qb4 {[%clk 0:02:50.8]} 16. Qxb4 {[%clk 0:02:02.9]} 16... Rxb4
{[%clk 0:02:51.7]} 17. Nc5 {[%clk 0:01:53]} 17... d5 {[%clk 0:02:51.7]} 18. a3
{[%clk 0:01:24]} 18... Rb6 {[%clk 0:02:49.4]} 19. e5 {[%clk 0:01:16.8]} 19...
Nd7 {[%clk 0:02:48.2]} 20. Nxd7 {[%clk 0:01:16.5]} 20... Bxd7 {[%clk 0:02:49.1]}
21. c4 {[%clk 0:01:14]} 21... a5 {[%clk 0:02:46.5]} 22. c5 {[%clk 0:01:05.2]}
22... Rb3 {[%clk 0:02:45]} 23. Rd3 {[%clk 0:00:56.8]} 23... Rb7 {[%clk
0:02:44.6]} 24. Rd2 {[%clk 0:00:49.6]} 24... f6 {[%clk 0:02:43.7]} 25. exf6
{[%clk 0:00:45.2]} 25... gxf6 {[%clk 0:02:42.8]} 26. Bd3 {[%clk 0:00:42]} 26...
e5 {[%clk 0:02:39.2]} 27. Kc2 {[%clk 0:00:22.9]} 27... f5 {[%clk 0:02:33.5]} 28.
Re1 {[%clk 0:00:21.9]} 28... e4 {[%clk 0:02:32]} 29. fxe4 {[%clk 0:00:20.2]}
29... fxe4 {[%clk 0:02:32.9]} 30. Be2 {[%clk 0:00:19.9]} 30... Rfb8 {[%clk
0:02:28.8]} 31. Rb1 {[%clk 0:00:15.9]} 31... Bf5 {[%clk 0:02:26.5]} 32. g3
{[%clk 0:00:10.8]} 32... e3+ {[%clk 0:02:24]} 33. Rd3 {[%clk 0:00:10]} 33... Rb3
{[%clk 0:02:23.6]} 34. g4 {[%clk 0:00:07.8]} 34... Be4 {[%clk 0:02:23]} 35. h3
{[%clk 0:00:06.6]} 35... a4 {[%clk 0:02:22.9]} 36. h4 {[%clk 0:00:05.3]} 36...
Rf8 {[%clk 0:02:22]} 37. g5 {[%clk 0:00:04.8]} 37... Rf2 {[%clk 0:02:21.6]} 38.
Re1 {[%clk 0:00:04.5]} 38... Bxd3+ {[%clk 0:02:21.2]} 0-1

[Event "*** Titled Tuesday Blitz"]
[Site "Chess.com"]
[Date "2021.03.09"]
[Round "1"]
[White "Mbneu"]
[Black "BursaBBSatranc"]
[Result "0-1"]
[WhiteElo "2300"]
[BlackElo "2603"]
[TimeControl "180+1"]
[EndTime "10:05:20 PST"]
[Termination "BursaBBSatranc won by resignation"]

1. d4 {[%clk 0:03:00.2]} 1... d5 {[%clk 0:02:59.9]} 2. c4 {[%clk 0:02:58.8]}
2... c6 {[%clk 0:03:00.1]} 3. Nc3 {[%clk 0:02:59.1]} 3... Nf6 {[%clk 0:02:59.7]}
4. Nf3 {[%clk 0:02:59]} 4... a6 {[%clk 0:02:59.6]} 5. g3 {[%clk 0:02:57.7]} 5...
b5 {[%clk 0:02:59.2]} 6. Bg2 {[%clk 0:02:57.9]} 6... bxc4 {[%clk 0:02:58]} 7.
O-O {[%clk 0:02:58.3]} 7... Bf5 {[%clk 0:02:57.5]} 8. Ne5 {[%clk 0:02:57.9]}
8... e6 {[%clk 0:02:56.2]} 9. b3 {[%clk 0:02:44.2]} 9... cxb3 {[%clk 0:02:55.7]}
10. Qxb3 {[%clk 0:02:43]} 10... Bd6 {[%clk 0:02:56.2]} 11. Qa4 {[%clk
0:02:41.5]} 11... O-O {[%clk 0:02:40.6]} 12. Bf4 {[%clk 0:02:39.3]} 12... Qe7
{[%clk 0:02:29.1]} 13. Rfc1 {[%clk 0:02:07.9]} 13... c5 {[%clk 0:02:24.7]} 14.
dxc5 {[%clk 0:01:32]} 14... Bxc5 {[%clk 0:02:25.6]} 15. Rab1 {[%clk 0:01:25.4]}
15... Bxb1 {[%clk 0:02:09]} 16. Nxb1 {[%clk 0:01:23.6]} 16... Qa7 {[%clk
0:02:00.2]} 17. e3 {[%clk 0:01:22.2]} 17... Nbd7 {[%clk 0:01:46.4]} 18. Nc6
{[%clk 0:01:19.8]} 18... Qb6 {[%clk 0:01:46]} 19. Nd2 {[%clk 0:01:16]} 19...
Rfc8 {[%clk 0:01:43.9]} 20. Ne5 {[%clk 0:01:08.5]} 20... Nxe5 {[%clk 0:01:43.8]}
21. Bxe5 {[%clk 0:01:06]} 21... Bxe3 {[%clk 0:01:27.8]} 22. Rxc8+ {[%clk
0:00:59.6]} 22... Rxc8 {[%clk 0:01:27.5]} 23. Bxf6 {[%clk 0:00:55.1]} 23... Bxd2
{[%clk 0:01:11.4]} 24. Qg4 {[%clk 0:00:52.8]} 24... Qb1+ {[%clk 0:01:09.6]} 25.
Bf1 {[%clk 0:00:51.9]} 25... Qg6 {[%clk 0:01:09.8]} 0-1

[Event "*** Titled Tuesday Blitz"]
[Site "Chess.com"]
[Date "2021.03.09"]
[Round "1"]
[White "BJthechessgod"]
[Black "francyIM"]
[Result "0-1"]
[WhiteElo "2291"]
[BlackElo "2596"]
[TimeControl "180+1"]
[EndTime "10:05:23 PST"]
[Termination "francyIM won by checkmate"]

1. d4 {[%clk 0:03:00]} 1... Nf6 {[%clk 0:02:56.8]} 2. Nf3 {[%clk 0:02:57.8]}
2... d6 {[%clk 0:02:56.3]} 3. Bf4 {[%clk 0:02:56.3]} 3... Bf5 {[%clk 0:02:50.4]}
4. Nbd2 {[%clk 0:02:47.3]} 4... h6 {[%clk 0:02:47.7]} 5. h3 {[%clk 0:02:42.5]}
5... Nbd7 {[%clk 0:02:47.3]} 6. c3 {[%clk 0:02:40.8]} 6... c6 {[%clk 0:02:41.8]}
7. g4 {[%clk 0:02:36.3]} 7... Bg6 {[%clk 0:02:38.8]} 8. Bg2 {[%clk 0:02:35.2]}
8... e6 {[%clk 0:02:33.2]} 9. Nc4 {[%clk 0:02:19.6]} 9... Nb6 {[%clk 0:02:27]}
10. Nxb6 {[%clk 0:02:14.2]} 10... axb6 {[%clk 0:02:25.2]} 11. Nd2 {[%clk
0:02:10.9]} 11... d5 {[%clk 0:02:17.9]} 12. a4 {[%clk 0:01:50.6]} 12... Bd6
{[%clk 0:02:16.2]} 13. Bxd6 {[%clk 0:01:28.4]} 13... Qxd6 {[%clk 0:02:17.1]} 14.
Qb3 {[%clk 0:01:24.6]} 14... Nd7 {[%clk 0:02:16.3]} 15. e3 {[%clk 0:01:19.3]}
15... O-O {[%clk 0:02:15.2]} 16. f4 {[%clk 0:01:18.5]} 16... f6 {[%clk
0:02:02.2]} 17. O-O {[%clk 0:01:15.9]} 17... e5 {[%clk 0:02:00.6]} 18. f5 {[%clk
0:01:12.5]} 18... Bf7 {[%clk 0:01:57]} 19. Nf3 {[%clk 0:00:56.5]} 19... Rfe8
{[%clk 0:01:48.4]} 20. Nh4 {[%clk 0:00:52.2]} 20... exd4 {[%clk 0:01:33.5]} 21.
exd4 {[%clk 0:00:46.7]} 21... Qg3 {[%clk 0:01:27.7]} 22. Nf3 {[%clk 0:00:44.3]}
22... Re2 {[%clk 0:01:24.5]} 23. Ne1 {[%clk 0:00:43.9]} 23... Rae8 {[%clk
0:01:23.3]} 24. Kh1 {[%clk 0:00:35.9]} 24... Rxg2 {[%clk 0:01:18.1]} 25. Nxg2
{[%clk 0:00:33.5]} 25... Re2 {[%clk 0:01:18.4]} 26. Nf4 {[%clk 0:00:26.5]} 26...
Qh2# {[%clk 0:01:13.7]} 0-1

[Event "*** Titled Tuesday Blitz"]
[Site "Chess.com"]
[Date "2021.03.09"]
[Round "1"]
[White "iturrizaga"]
[Black "McCarthyStone"]
[Result "1-0"]
[WhiteElo "2835"]
[BlackElo "2440"]
[TimeControl "180+1"]
[EndTime "10:05:24 PST"]
[Termination "iturrizaga won by resignation"]

1. c4 {[%clk 0:02:30.2]} 1... Nf6 {[%clk 0:02:58.4]} 2. g3 {[%clk 0:02:05.3]}
2... g6 {[%clk 0:02:52.8]} 3. Bg2 {[%clk 0:01:55.2]} 3... Bg7 {[%clk 0:02:52.9]}
4. Nc3 {[%clk 0:01:54.9]} 4... O-O {[%clk 0:02:52.9]} 5. d4 {[%clk 0:01:53.9]}
5... d6 {[%clk 0:02:50.9]} 6. e4 {[%clk 0:01:44.9]} 6... c6 {[%clk 0:02:51.4]}
7. Nge2 {[%clk 0:01:43.6]} 7... e5 {[%clk 0:02:49.1]} 8. h3 {[%clk 0:01:43.1]}
8... Nbd7 {[%clk 0:02:48.2]} 9. Be3 {[%clk 0:01:42.7]} 9... Qa5 {[%clk
0:02:45.6]} 10. O-O {[%clk 0:01:40.6]} 10... Re8 {[%clk 0:02:45.6]} 11. d5
{[%clk 0:01:37.2]} 11... cxd5 {[%clk 0:02:42.4]} 12. cxd5 {[%clk 0:01:36]} 12...
b5 {[%clk 0:02:42.5]} 13. a3 {[%clk 0:01:34.3]} 13... Nb6 {[%clk 0:02:35.1]} 14.
b4 {[%clk 0:01:26.9]} 14... Qa6 {[%clk 0:02:35.2]} 15. Qd3 {[%clk 0:01:26.4]}
15... Nc4 {[%clk 0:02:31.8]} 16. a4 {[%clk 0:01:14.8]} 16... Nxe3 {[%clk
0:02:20.8]} 17. axb5 {[%clk 0:01:13.9]} 17... Qb6 {[%clk 0:02:20.9]} 18. Qxe3
{[%clk 0:01:13.2]} 18... Qxe3 {[%clk 0:02:20.5]} 19. fxe3 {[%clk 0:01:14.1]}
19... Bh6 {[%clk 0:02:21.2]} 20. Rxf6 {[%clk 0:01:11.1]} 20... Bxe3+ {[%clk
0:02:21.5]} 21. Kh2 {[%clk 0:01:10.3]} 21... Bd7 {[%clk 0:02:22.4]} 22. Rxd6
{[%clk 0:01:09.3]} 22... Red8 {[%clk 0:02:22.7]} 23. Rda6 {[%clk 0:00:59.3]}
23... Rac8 {[%clk 0:02:19.8]} 24. Rc6 {[%clk 0:00:55.8]} 24... Bxc6 {[%clk
0:02:16.4]} 25. bxc6 {[%clk 0:00:55.8]} 25... Kf8 {[%clk 0:02:15.9]} 26. b5
{[%clk 0:00:55.6]} 26... Ke7 {[%clk 0:02:15.5]} 27. Ra4 {[%clk 0:00:55.6]} 27...
Kd6 {[%clk 0:02:14.8]} 28. Nd1 {[%clk 0:00:55.6]} 28... Bb6 {[%clk 0:02:13.8]}
29. Nec3 {[%clk 0:00:55.5]} 29... f5 {[%clk 0:02:13.4]} 30. Bf3 {[%clk
0:00:49.9]} 30... Rf8 {[%clk 0:02:11.6]} 31. Kg2 {[%clk 0:00:49.9]} 31... h6
{[%clk 0:02:09.5]} 32. Nb2 {[%clk 0:00:48.3]} 32... Kc5 {[%clk 0:02:06.6]} 33.
Nd3+ {[%clk 0:00:44.4]} 33... Kd6 {[%clk 0:02:06.1]} 34. Rc4 {[%clk 0:00:42.8]}
34... Rc7 {[%clk 0:02:02]} 35. Na4 {[%clk 0:00:41.6]} 35... Ra8 {[%clk
0:01:56.7]} 36. Nac5 {[%clk 0:00:40.3]} 36... Re7 {[%clk 0:01:52.7]} 37. Nb7+
{[%clk 0:00:39]} 37... Rxb7 {[%clk 0:01:49.2]} 38. cxb7 {[%clk 0:00:38.9]} 38...
Rb8 {[%clk 0:01:50.1]} 39. Rc6+ {[%clk 0:00:39.5]} 39... Kd7 {[%clk 0:01:49.3]}
40. Nxe5+ {[%clk 0:00:39.3]} 40... Ke7 {[%clk 0:01:49.3]} 41. Re6+ {[%clk
0:00:37]} 41... Kf8 {[%clk 0:01:49.1]} 42. Nd7+ {[%clk 0:00:34.5]} 1-0

[Event "*** Titled Tuesday Blitz"]
[Site "Chess.com"]
[Date "2021.03.09"]
[Round "1"]
[White "coco_crc"]
[Black "GM_LOADING"]
[Result "0-1"]
[WhiteElo "2195"]
[BlackElo "2527"]
[TimeControl "180+1"]
[EndTime "10:05:27 PST"]
[Termination "GM_LOADING won by resignation"]

1. e4 {[%clk 0:03:00.1]} 1... e5 {[%clk 0:02:59.7]} 2. Nf3 {[%clk 0:02:59.9]}
2... Nc6 {[%clk 0:03:00.3]} 3. c3 {[%clk 0:03:00.4]} 3... Nf6 {[%clk 0:02:57]}
4. d4 {[%clk 0:03:00.7]} 4... d6 {[%clk 0:02:47.4]} 5. dxe5 {[%clk 0:03:00]}
5... dxe5 {[%clk 0:02:47.6]} 6. Qxd8+ {[%clk 0:03:00.9]} 6... Kxd8 {[%clk
0:02:48.3]} 7. Bg5 {[%clk 0:03:00.5]} 7... Ke8 {[%clk 0:02:46.7]} 8. Nbd2 {[%clk
0:02:59.5]} 8... Be6 {[%clk 0:02:46.8]} 9. Bxf6 {[%clk 0:02:55.3]} 9... gxf6
{[%clk 0:02:46.5]} 10. Bc4 {[%clk 0:02:56]} 10... Bh6 {[%clk 0:02:43.8]} 11.
Bxe6 {[%clk 0:02:55.2]} 11... fxe6 {[%clk 0:02:43.1]} 12. Ke2 {[%clk 0:02:55.6]}
12... Ke7 {[%clk 0:02:43.1]} 13. Rhd1 {[%clk 0:02:55.5]} 13... Rhg8 {[%clk
0:02:40.1]} 14. g3 {[%clk 0:02:54.6]} 14... Nd8 {[%clk 0:02:33.4]} 15. Nc4
{[%clk 0:02:53.4]} 15... Nf7 {[%clk 0:02:33.6]} 16. Rd3 {[%clk 0:02:47.7]} 16...
Nd6 {[%clk 0:02:32.7]} 17. Nxd6 {[%clk 0:02:42.6]} 17... cxd6 {[%clk 0:02:33.6]}
18. Rad1 {[%clk 0:02:41.9]} 18... Rgd8 {[%clk 0:02:34.2]} 19. c4 {[%clk
0:02:41.2]} 19... Rac8 {[%clk 0:02:33.3]} 20. b3 {[%clk 0:02:41.2]} 20... Rc6
{[%clk 0:02:32.4]} 21. Nd2 {[%clk 0:02:36.2]} 21... a6 {[%clk 0:02:13.6]} 22. a4
{[%clk 0:02:29.5]} 22... Bxd2 {[%clk 0:02:01]} 23. R1xd2 {[%clk 0:02:29.4]}
23... a5 {[%clk 0:02:01.4]} 24. Ke3 {[%clk 0:02:23.5]} 24... Rg8 {[%clk
0:01:54]} 25. Rd1 {[%clk 0:02:17.8]} 25... Rgc8 {[%clk 0:01:43.1]} 26. R1d2
{[%clk 0:02:02.1]} 26... Rb6 {[%clk 0:01:37.5]} 27. Rd1 {[%clk 0:01:54.8]} 27...
Kd7 {[%clk 0:01:36.1]} 28. Kd2 {[%clk 0:01:47.3]} 28... Kc6 {[%clk 0:01:27.5]}
29. Kc3 {[%clk 0:01:45.5]} 29... Kc5 {[%clk 0:01:27.9]} 30. Rf3 {[%clk
0:01:39.3]} 30... Rf8 {[%clk 0:01:26.6]} 31. Rd2 {[%clk 0:01:34.6]} 31... Rc6
{[%clk 0:01:23.9]} 32. Rd1 {[%clk 0:01:31]} 32... Rc7 {[%clk 0:01:22.3]} 33.
Rfd3 {[%clk 0:01:29.1]} 33... Rd7 {[%clk 0:01:21.9]} 34. Rb1 {[%clk 0:01:22.2]}
34... f5 {[%clk 0:01:17.5]} 35. exf5 {[%clk 0:01:20.9]} 35... Rxf5 {[%clk
0:01:17.4]} 36. Rb2 {[%clk 0:01:21.1]} 36... e4 {[%clk 0:01:08.6]} 37. Rd4
{[%clk 0:01:12.1]} 37... Rf3+ {[%clk 0:01:07.1]} 0-1